[Event "45th FIDE Womens Olympiad 2024"]
[Site "Budapest"]
[Date "2024.09.13"]
[Round "3.206"]
[White "Efentakis, Katina"]
[Black "Thorsteinsdottir, Hallgerdur"]
[Result "0-1"]
[ECO "B13"]
[WhiteElo "1650"]
[BlackElo "1938"]
[Annotator "NA RC"]
[PlyCount "72"]
[EventDate "2024.09.05"]
[EventType "team-tourn"]
[EventCountry "HUN"]
[SourceTitle "playchess.com"]
[Source "ChessBase"]
[SourceQuality "1"]
[WhiteTeam "Mozambique"]
[BlackTeam "Iceland"]
[WhiteTeamCountry "MOZ"]
[BlackTeamCountry "ISL"]
[TimeControl "40/5400+30:1800+30"]

1. e4 c6 2. Nf3 d5 3. exd5 cxd5 4. d4 Nf6 5. Bd3 Bg4 6. c3 e6 7. Nbd2 Nc6 8. O-O Bd6 9. Re1 Qc7 10. Qa4 O-O 11. h3 Bh5 12. Qc2 Rfc8 13. Be2 a6 14. Qd1 b5 15. Ne5 Bxe2 16. Qxe2 b4 17. Nxc6 Qxc6 18. cxb4 Bxb4 19. a3 Bd6 20. b4 Qc3 21. Nf3 Qxa1 22. Bf4 Qxe1+ 23. Nxe1 Bxf4 24. Nd3 Bd6 25. Nc5 Bxc5 26. bxc5 Ne4 27. Qc2 Rc6 28. f3 Ng3 29. Kh2 Nf5 30. Qd3 Rac8 31. f4 f6 32. g4 Nxd4 33. Qxd4 Rxc5 34. Qd3 Rc2+ 35. Kg1 Rc1+ 36. Kf2 R8c2+ 0-1

[Event "45th FIDE Womens Olympiad 2024"]
[Site "Budapest"]
[Date "2024.09.13"]
[Round "3.207"]
[White "Helgadottir, Idunn"]
[Black "Castro, Neusa Aridas De"]
[Result "1/2-1/2"]
[ECO "C02"]
[WhiteElo "1837"]
[BlackElo "1684"]
[Annotator "NA"]
[PlyCount "143"]
[EventDate "2024.09.05"]
[EventType "team-tourn"]
[EventCountry "HUN"]
[SourceTitle "playchess.com"]
[Source "ChessBase"]
[SourceQuality "1"]
[WhiteTeam "Iceland"]
[BlackTeam "Mozambique"]
[WhiteTeamCountry "ISL"]
[BlackTeamCountry "MOZ"]
[TimeControl "40/5400+30:1800+30"]

1. e4 e6 2. d4 d5 3. e5 c5 4. c3 Qb6 5. Nf3 Bd7 6. Bd3 Bb5 7. O-O Bxd3 8. Qxd3 Nc6 9. dxc5 Bxc5 10. b4 Bf8 11. Nbd2 Nge7 12. Nb3 Ng6 13. Re1 Be7 14. Nbd4 Rc8 15. Bd2 O-O 16. a4 Qc7 17. Qe2 Bd8 18. Nb5 Qd7 19. Nd6 Rb8 20. Nb5 a6 21. Nbd4 Rc8 22. Rec1 Bb6 23. b5 Nxd4 24. cxd4 axb5 25. axb5 Ne7 26. Bb4 Rfe8 27. Qd3 Ng6 28. g3 Ra8 29. Bc5 Rxa1 30. Rxa1 Qc7 31. Qe3 Rc8 32. Rc1 Ra8 33. Bd6 Qd7 34. Qc3 h6 35. Qb4 Ra5 36. Rb1 Ra8 37. h4 Bd8 38. h5 Ne7 39. b6 Nc6 40. Qc3 Qc8 41. Nd2 Ra6 42. Bc5 Ne7 43. Qb4 Nc6 44. Qc3 Nb8 45. Qb2 Nd7 46. Qb5 Bxb6 47. Nb3 Bxc5 48. Nxc5 Rb6 49. Qd3 Nxc5 50. dxc5 Rc6 51. Qb5 Rxc5 52. Qxb7 Qxb7 53. Rxb7 g6 54. hxg6 fxg6 55. Re7 Rc6 56. g4 Kf8 57. Rd7 Kg8 58. f3 g5 59. Kf2 Rb6 60. Ke3 Rb1 61. Ke2 Kf8 62. Kd2 Rh1 63. Rh7 Rh2+ 64. Kd3 Rh3 65. Ke3 Kg8 66. Re7 d4+ 67. Ke4 d3 68. Rd7 Rh1 69. Rxd3 Rc1 70. Rd8+ Kf7 71. Rd7+ Kg8 72. Rd8+ 1/2-1/2

[Event "45th FIDE Womens Olympiad 2024"]
[Site "Budapest"]
[Date "2024.09.13"]
[Round "3.208"]
[White "Sandramo, Chineva Rufino"]
[Black "Briem, Gudrun Fanney"]
[Result "1-0"]
[ECO "B13"]
[WhiteElo "1524"]
[BlackElo "1764"]
[Annotator "NA"]
[PlyCount "55"]
[EventDate "2024.09.05"]
[EventType "team-tourn"]
[EventCountry "HUN"]
[SourceTitle "playchess.com"]
[Source "ChessBase"]
[SourceQuality "1"]
[WhiteTeam "Mozambique"]
[BlackTeam "Iceland"]
[WhiteTeamCountry "MOZ"]
[BlackTeamCountry "ISL"]
[TimeControl "40/5400+30:1800+30"]

1. e4 c6 2. d4 d5 3. exd5 cxd5 4. Nf3 Nf6 5. Bd3 Nc6 6. c3 Bg4 7. Nbd2 e6 8. O-O Bd6 9. Re1 O-O 10. Nf1 Re8 11. Bg5 h6 12. Bh4 Rb8 13. h3 Bxf3 14. Qxf3 Be7 15. Rad1 b5 16. Nh2 b4 17. Ng4 Nxg4 18. Bxe7 Qxe7 19. Qxg4 bxc3 20. bxc3 Rb2 21. a4 Qf6 22. Qg3 Ne7 23. Rb1 Rxb1 24. Rxb1 g6 25. Rb8 Rxb8 26. Qxb8+ Kg7 27. Qxa7 Nf5 28. Qb8 1-0

[Event "45th FIDE Womens Olympiad 2024"]
[Site "Budapest"]
[Date "2024.09.13"]
[Round "3.209"]
[White "Karelina, Polina"]
[Black "Shohradova, Lala"]
[Result "0-1"]
[ECO "A08"]
[WhiteElo "1898"]
[BlackElo "2030"]
[Annotator "NA RC"]
[PlyCount "112"]
[EventDate "2024.09.05"]
[EventType "team-tourn"]
[EventCountry "HUN"]
[SourceTitle "playchess.com"]
[Source "ChessBase"]
[SourceQuality "1"]
[WhiteTeam "Bahamas"]
[BlackTeam "Turkmenistan"]
[WhiteTeamCountry "BAH"]
[BlackTeamCountry "TKM"]
[TimeControl "40/5400+30:1800+30"]

1. e4 e6 2. d3 d5 3. Nd2 Nf6 4. Ngf3 c5 5. g3 g6 6. Bg2 Bg7 7. O-O O-O 8. Qe2 Nc6 9. c3 a5 10. a4 b6 11. Re1 Ba6 12. h4 dxe4 13. Nxe4 Qxd3 14. Qxd3 Bxd3 15. Nxf6+ Bxf6 16. Bh6 Rfd8 17. Ng5 Rac8 18. Nxe6 fxe6 19. Rxe6 Ne5 20. Rxf6 Ng4 21. Bg5 Nxf6 22. Bxf6 Rd7 23. Bg5 Bc2 24. Bh3 Bf5 25. Bf1 Kg7 26. Bb5 Rf7 27. Rd1 h6 28. Be3 Bg4 29. Rd6 Rb8 30. Bd3 Bf5 31. Bb5 Rff8 32. Bf4 Rfd8 33. Be5+ Kh7 34. Rf6 Rf8 35. Rc6 Rb7 36. Rd6 g5 37. hxg5 hxg5 38. Bc6 Re7 39. Bf6 Re1+ 40. Kg2 g4 41. Bg5 Re6 42. Rxe6 Bxe6 43. Kf1 Kg6 44. Be3 Rc8 45. Bb5 Rd8 46. Be2 Kf5 47. c4 Rh8 48. Bd3+ Ke5 49. Ke2 Bf5 50. Bf4+ Kf6 51. Bc7 Re8+ 52. Kd2 Bxd3 53. Kxd3 Re6 54. Kd2 Kf5 55. Bf4 Ke4 56. Kc2 Kf3 0-1

[Event "45th FIDE Womens Olympiad 2024"]
[Site "Budapest"]
[Date "2024.09.13"]
[Round "3.210"]
[White "Agajanova, Meryem"]
[Black "Thomas, Nelissa"]
[Result "1-0"]
[ECO "D15"]
[WhiteElo "2007"]
[BlackElo "1631"]
[Annotator "NA RC"]
[PlyCount "69"]
[EventDate "2024.09.05"]
[EventType "team-tourn"]
[EventCountry "HUN"]
[SourceTitle "playchess.com"]
[Source "ChessBase"]
[SourceQuality "1"]
[WhiteTeam "Turkmenistan"]
[BlackTeam "Bahamas"]
[WhiteTeamCountry "TKM"]
[BlackTeamCountry "BAH"]
[TimeControl "40/5400+30:1800+30"]

1. d4 d5 2. c4 c6 3. Nc3 Nf6 4. Nf3 a6 5. e3 b5 6. b3 Bf5 7. Bd3 Bxd3 8. Qxd3 e6 9. O-O Nbd7 10. Rd1 Bd6 11. e4 dxe4 12. Nxe4 Be7 13. Bf4 O-O 14. Rac1 Qb6 15. Rc2 Rfd8 16. cxb5 axb5 17. Rdc1 Rac8 18. Bd6 Nd5 19. Bxe7 Nxe7 20. Nd6 Rb8 21. Ng5 f5 22. Nxe6 Ne5 23. dxe5 Rd7 24. Nxg7 Nd5 25. Rxc6 Nb4 26. Rxb6 Nxd3 27. Rxb8+ Kxg7 28. Rd1 Nxe5 29. Nxf5+ Kg6 30. Rxd7 Nxd7 31. Rxb5 Kf6 32. a4 Ne5 33. a5 Nd7 34. a6 Ke6 35. a7 1-0

[Event "45th FIDE Womens Olympiad 2024"]
[Site "Budapest"]
[Date "2024.09.13"]
[Round "3.211"]
[White "Johnson, Daijah"]
[Black "Rejepova, Jahan"]
[Result "0-1"]
[ECO "D55"]
[WhiteElo "1625"]
[BlackElo "1915"]
[Annotator "NA RC"]
[PlyCount "84"]
[EventDate "2024.09.05"]
[EventType "team-tourn"]
[EventCountry "HUN"]
[SourceTitle "playchess.com"]
[Source "ChessBase"]
[SourceQuality "1"]
[WhiteTeam "Bahamas"]
[BlackTeam "Turkmenistan"]
[WhiteTeamCountry "BAH"]
[BlackTeamCountry "TKM"]
[TimeControl "40/5400+30:1800+30"]

1. d4 d5 2. c4 e6 3. Nc3 Nf6 4. Nf3 Be7 5. Bg5 h6 6. Bxf6 Bxf6 7. e3 O-O 8. Bd3 c5 9. O-O cxd4 10. exd4 dxc4 11. Bxc4 Nc6 12. Ne2 b6 13. Qd2 Bb7 14. b3 Ne7 15. Rad1 Nd5 16. Bxd5 Bxd5 17. Ne5 Qd6 18. Nc3 Bb7 19. Ng4 Be7 20. f3 Rfd8 21. Ne4 Bxe4 22. fxe4 Qxd4+ 23. Qxd4 Rxd4 24. Rxd4 Bc5 25. Rfd1 Rd8 26. Kf1 Rxd4 27. Rxd4 Bxd4 28. h3 Kf8 29. Ke2 f6 30. Nh2 Ke7 31. Kd3 Bc5 32. Nf1 Kd6 33. Nd2 Ke5 34. g3 f5 35. exf5 exf5 36. Kc4 Be3 37. Nf1 Ke4 38. Kb5 Kf3 39. g4 f4 40. Kc4 Kg2 41. Nxe3+ fxe3 42. Kd3 Kf2 0-1

[Event "45th FIDE Womens Olympiad 2024"]
[Site "Budapest"]
[Date "2024.09.13"]
[Round "3.212"]
[White "Arazmedova, Enesh"]
[Black "Pride, Chika"]
[Result "1-0"]
[ECO "B07"]
[WhiteElo "1761"]
[BlackElo "1587"]
[Annotator "NA"]
[PlyCount "121"]
[EventDate "2024.09.05"]
[EventType "team-tourn"]
[EventCountry "HUN"]
[SourceTitle "playchess.com"]
[Source "ChessBase"]
[SourceQuality "1"]
[WhiteTeam "Turkmenistan"]
[BlackTeam "Bahamas"]
[WhiteTeamCountry "TKM"]
[BlackTeamCountry "BAH"]
[TimeControl "40/5400+30:1800+30"]

1. e4 d6 2. d4 Nf6 3. Nc3 e5 4. dxe5 dxe5 5. Qxd8+ Kxd8 6. Bg5 Be7 7. O-O-O+ Ke8 8. Nf3 Nbd7 9. Bh4 a6 10. a4 Bd6 11. Nd2 b6 12. f3 Bb7 13. Bc4 c6 14. Bb3 b5 15. Rhe1 Nc5 16. Kb1 Bc8 17. Ba2 Nxa4 18. Nxa4 bxa4 19. Nc4 Bc7 20. Nd6+ Ke7 21. Nxf7 Rf8 22. Ng5 h6 23. Nh7 Rh8 24. Nxf6 gxf6 25. Bf2 Bd6 26. Rd3 Be6 27. Red1 Bxa2+ 28. Kxa2 Rhd8 29. Rxd6 Rxd6 30. Bc5 Rad8 31. Ka3 Ke6 32. Rxd6+ Rxd6 33. Bxd6 Kxd6 34. Kxa4 Kc7 35. Kb4 Kb6 36. g3 c5+ 37. Kc4 Kc6 38. f4 exf4 39. gxf4 a5 40. e5 f5 41. e6 Kd6 42. e7 Kxe7 43. Kxc5 Ke6 44. Kc6 a4 45. c4 h5 46. c5 Ke7 47. Kb7 Kd7 48. c6+ Kd6 49. c7 Kd5 50. c8=Q Ke4 51. Qc4+ Kf3 52. Kc6 Kg2 53. Qe2+ Kg1 54. Kd5 h4 55. Kd4 h3 56. Ke3 a3 57. Kf3 a2 58. Qe1+ Kxh2 59. Qg3+ Kh1 60. Qxh3+ Kg1 61. Qg2# 1-0

[Event "45th FIDE Womens Olympiad 2024"]
[Site "Budapest"]
[Date "2024.09.13"]
[Round "3.213"]
[White "Timergazi, Layla"]
[Black "Lyons, Kieran"]
[Result "1-0"]
[ECO "A84"]
[WhiteElo "1979"]
[BlackElo "1818"]
[Annotator "NA RC"]
[PlyCount "63"]
[EventDate "2024.09.05"]
[EventType "team-tourn"]
[EventCountry "HUN"]
[SourceTitle "playchess.com"]
[Source "ChessBase"]
[SourceQuality "1"]
[WhiteTeam "New Zealand"]
[BlackTeam "Fiji"]
[WhiteTeamCountry "NZL"]
[BlackTeamCountry "FIJ"]
[TimeControl "40/5400+30:1800+30"]

1. d4 f5 2. c4 Nf6 3. Nf3 e6 4. g3 b6 5. Bg2 Bb7 6. Nc3 Bb4 7. O-O Bxc3 8. bxc3 Ne4 9. Qd3 Nc6 10. Ba3 d6 11. d5 Na5 12. dxe6 Qf6 13. Nd4 Rc8 14. f3 Nc5 15. Bxc5 dxc5 16. Nxf5 O-O 17. e7 Rfe8 18. Bh3 Rb8 19. Rad1 g6 20. Nh6+ Kg7 21. Ng4 Qxe7 22. e4 Rbd8 23. Qe3 Nxc4 24. Qh6+ Kh8 25. Rfe1 Qg7 26. Qg5 Rxd1 27. Rxd1 Qxc3 28. Bf1 Qxf3 29. Rd8 Rf8 30. Rxf8+ Qxf8 31. Bxc4 Qd6 32. Qf6+ 1-0

[Event "45th FIDE Womens Olympiad 2024"]
[Site "Budapest"]
[Date "2024.09.13"]
[Round "3.214"]
[White "Sukhu, Gloria"]
[Black "Ning, Isabelle Yixuan"]
[Result "0-1"]
[ECO "A16"]
[WhiteElo "1634"]
[BlackElo "1915"]
[Annotator "NA RC"]
[PlyCount "82"]
[EventDate "2024.09.05"]
[EventType "team-tourn"]
[EventCountry "HUN"]
[SourceTitle "playchess.com"]
[Source "ChessBase"]
[SourceQuality "1"]
[WhiteTeam "Fiji"]
[BlackTeam "New Zealand"]
[WhiteTeamCountry "FIJ"]
[BlackTeamCountry "NZL"]
[TimeControl "40/5400+30:1800+30"]

1. Nf3 Nf6 2. g3 g6 3. Bg2 Bg7 4. O-O O-O 5. c4 d6 6. Nc3 c5 7. Qc2 Nc6 8. e3 Bf5 9. e4 Bg4 10. d3 Qd7 11. Ne2 Ne8 12. Rb1 Nc7 13. a3 a5 14. Be3 f5 15. Nf4 fxe4 16. dxe4 e5 17. Nd5 Nxd5 18. cxd5 Bxf3 19. dxc6 Qxc6 20. Bxf3 Rxf3 21. Kg2 Raf8 22. Qc4+ Kh8 23. Rbd1 h6 24. Rd5 R3f6 25. a4 Rb8 26. Rfd1 Bf8 27. f3 b5 28. Qc1 Kh7 29. Bxc5 dxc5 30. Rd8 Rxd8 31. Rxd8 Rxf3 32. Rd5 Rf7 33. b3 bxa4 34. Qc2 Qb5 35. Rd1 axb3 36. Qb2 a4 37. g4 a3 38. Qd2 b2 39. Rb1 a2 40. Qd5 Qe2+ 41. Kg1 axb1=Q+ 0-1

[Event "45th FIDE Womens Olympiad 2024"]
[Site "Budapest"]
[Date "2024.09.13"]
[Round "3.215"]
[White "Chang, Yolanda"]
[Black "Terubea, Cydel"]
[Result "1-0"]
[ECO "B01"]
[WhiteElo "1908"]
[BlackElo "1681"]
[Annotator "NA RC"]
[PlyCount "59"]
[EventDate "2024.09.05"]
[EventType "team-tourn"]
[EventCountry "HUN"]
[SourceTitle "playchess.com"]
[Source "ChessBase"]
[SourceQuality "1"]
[WhiteTeam "New Zealand"]
[BlackTeam "Fiji"]
[WhiteTeamCountry "NZL"]
[BlackTeamCountry "FIJ"]
[TimeControl "40/5400+30:1800+30"]

1. e4 d5 2. exd5 Qxd5 3. Nc3 Qd8 4. d4 e6 5. Nf3 Nf6 6. Bc4 c6 7. a4 a5 8. O-O Be7 9. Qe2 O-O 10. Be3 Nbd7 11. Rad1 Qc7 12. Rfe1 Re8 13. Bc1 Bb4 14. Rd3 Nf8 15. Ne5 Bd6 16. Rf3 Bxe5 17. dxe5 N6d7 18. Bf4 Ng6 19. Bg3 Qd8 20. Rd1 Qe7 21. h4 Nxh4 22. Bxh4 Qxh4 23. Rh3 Qg5 24. Rh5 Qe7 25. Ne4 Nf8 26. Qg4 Kh8 27. Nd6 Rd8 28. Nxf7+ Qxf7 29. Rxd8 Qe7 30. Qh4 1-0

[Event "45th FIDE Womens Olympiad 2024"]
[Site "Budapest"]
[Date "2024.09.13"]
[Round "3.216"]
[White "Prasad, Tanvi"]
[Black "Braganza, Nadia"]
[Result "0-1"]
[ECO "A13"]
[WhiteElo "1564"]
[BlackElo "1890"]
[Annotator "NA COMBH"]
[PlyCount "56"]
[EventDate "2024.09.05"]
[EventType "team-tourn"]
[EventCountry "HUN"]
[SourceTitle "playchess.com"]
[Source "ChessBase"]
[SourceQuality "1"]
[WhiteTeam "Fiji"]
[BlackTeam "New Zealand"]
[WhiteTeamCountry "FIJ"]
[BlackTeamCountry "NZL"]
[TimeControl "40/5400+30:1800+30"]

1. b3 d5 2. Bb2 e6 3. e3 Nf6 4. Nf3 Be7 5. c4 O-O 6. Nc3 c5 7. d4 b6 8. Be2 Bb7 9. Qc2 Nc6 10. O-O cxd4 11. cxd5 Nb4 12. Qd2 dxc3 13. Bxc3 Nbxd5 14. Bb2 Nb4 15. Qc3 Rc8 16. Qe5 Qd5 17. Qf4 Nd3 18. Bxd3 Qxd3 19. Rfd1 Qe4 20. Qg3 Qg6 21. Qh3 Rfd8 22. Rac1 Rxd1+ 23. Rxd1 Qc2 24. Re1 Qxb2 25. Nd4 Rc1 26. Kf1 Ba6+ 27. Ne2 Bxe2+ 28. Kg1 Rxe1# 0-1

[Event "45th FIDE Womens Olympiad 2024"]
[Site "Budapest"]
[Date "2024.09.13"]
[Round "3.217"]
[White "Seine, Rose Berline"]
[Black "Paulo, Jemima"]
[Result "1-0"]
[ECO "D35"]
[WhiteElo "1778"]
[BlackElo "2037"]
[Annotator "NA RC"]
[PlyCount "89"]
[EventDate "2024.09.05"]
[EventType "team-tourn"]
[EventCountry "HUN"]
[SourceTitle "playchess.com"]
[Source "ChessBase"]
[SourceQuality "1"]
[WhiteTeam "Haiti"]
[BlackTeam "Angola"]
[WhiteTeamCountry "HAI"]
[BlackTeamCountry "ANG"]
[TimeControl "40/5400+30:1800+30"]

1. d4 d5 2. c4 e6 3. Nc3 Nf6 4. cxd5 exd5 5. Bg5 c6 6. e3 h6 7. Bh4 Nbd7 8. Bg3 Bb4 9. Bd3 O-O 10. h3 Re8 11. Nge2 a5 12. O-O b5 13. Rc1 Bb7 14. Bb1 Bf8 15. Nf4 Bd6 16. Nfxd5 Bxg3 17. Nxf6+ Qxf6 18. fxg3 Qg5 19. e4 Qxg3 20. Rf3 Qb8 21. Qb3 Re7 22. Rcf1 Qe8 23. a3 a4 24. Qc2 Nf8 25. Ba2 Ne6 26. Qf2 Rd8 27. d5 cxd5 28. exd5 Ng5 29. Rf4 Rd6 30. Qc5 Rg6 31. Kh2 Qd8 32. h4 Ne6 33. dxe6 Rxg2+ 34. Kh3 f6 35. Bd5 Rd2 36. Rd4 Rxd4 37. Qxd4 Bc8 38. Qe3 Qd6 39. Re1 Kf8 40. Qe4 g5 41. hxg5 hxg5 42. Kg2 Rg7 43. Rh1 Ke7 44. Rh7 Kf8 45. e7+ 1-0

[Event "45th FIDE Womens Olympiad 2024"]
[Site "Budapest"]
[Date "2024.09.13"]
[Round "3.218"]
[White "Caxita, Esperanca"]
[Black "Cadeau, Merisena"]
[Result "0-1"]
[ECO "B23"]
[WhiteElo "1932"]
[BlackElo "1671"]
[Annotator "NA RC"]
[PlyCount "76"]
[EventDate "2024.09.05"]
[EventType "team-tourn"]
[EventCountry "HUN"]
[SourceTitle "playchess.com"]
[Source "ChessBase"]
[SourceQuality "1"]
[WhiteTeam "Angola"]
[BlackTeam "Haiti"]
[WhiteTeamCountry "ANG"]
[BlackTeamCountry "HAI"]
[TimeControl "40/5400+30:1800+30"]

1. e4 c5 2. Nc3 Nc6 3. f4 d6 4. Nf3 a6 5. Bc4 b5 6. Bd5 Bb7 7. O-O e6 8. Bxc6+ Bxc6 9. d3 Ne7 10. Qe1 g6 11. e5 Bg7 12. Ne4 Nf5 13. g4 Bxe4 14. Qxe4 d5 15. Qe1 Ne7 16. Qf2 Qc7 17. Be3 Rc8 18. b3 O-O 19. g5 Nf5 20. Nh4 Ne7 21. Rac1 d4 22. Bd2 b4 23. Ra1 a5 24. a4 h6 25. gxh6 Bxh6 26. Qg2 Kh7 27. Qh3 Rh8 28. Rf2 Rcg8 29. Rg2 Kg7 30. Qf3 Kf8 31. Re1 Nd5 32. Rg4 Qd8 33. Qf2 g5 34. fxg5 Bxg5 35. Bxg5 Rxg5 36. Ng6+ Kg7 37. Qxf7+ Kxf7 38. Nxh8+ Kg8 0-1

[Event "45th FIDE Womens Olympiad 2024"]
[Site "Budapest"]
[Date "2024.09.13"]
[Round "3.219"]
[White "Jonet, Davena"]
[Black "Junior, Ednasia"]
[Result "1/2-1/2"]
[ECO "A80"]
[WhiteElo "1659"]
[BlackElo "1888"]
[Annotator "NA RC"]
[PlyCount "112"]
[EventDate "2024.09.05"]
[EventType "team-tourn"]
[EventCountry "HUN"]
[SourceTitle "playchess.com"]
[Source "ChessBase"]
[SourceQuality "1"]
[WhiteTeam "Haiti"]
[BlackTeam "Angola"]
[WhiteTeamCountry "HAI"]
[BlackTeamCountry "ANG"]
[TimeControl "40/5400+30:1800+30"]

1. d4 f5 2. Bf4 Nf6 3. Nf3 e6 4. e3 b6 5. Be2 Bb7 6. h3 Be7 7. Nbd2 O-O 8. Nc4 Ne4 9. a3 d6 10. c3 Kh8 11. Ncd2 Nd7 12. O-O Ndf6 13. Ng5 Qd7 14. Ngxe4 Nxe4 15. Nxe4 Bxe4 16. Bf3 Bxf3 17. Qxf3 Bf6 18. Qg3 Rae8 19. Bg5 Bxg5 20. Qxg5 Rf6 21. Qh5 Ref8 22. f4 Qb5 23. Rab1 Rg6 24. Qf3 e5 25. fxe5 dxe5 26. dxe5 Qxe5 27. Qf4 Re6 28. Qxe5 Rxe5 29. Rfe1 Rd8 30. Rbd1 Rde8 31. Kf2 Kg8 32. Rd7 R8e7 33. Rxe7 Rxe7 34. Kf3 Rd7 35. Re2 Kf7 36. e4 Kf6 37. exf5 Kxf5 38. Re4 Rd3+ 39. Re3 Rd7 40. Re4 c5 41. Ke3 g5 42. g4+ Kf6 43. Ke2 Rd5 44. Re3 Re5 45. a4 a6 46. Kd2 Rxe3 47. Kxe3 Ke5 48. Kf3 Kd5 49. b3 b5 50. a5 b4 51. cxb4 cxb4 52. Ke3 Ke5 53. Kd3 Kd5 54. Ke3 Ke5 55. Kd3 Kd5 56. Ke3 Ke5 1/2-1/2

[Event "45th FIDE Womens Olympiad 2024"]
[Site "Budapest"]
[Date "2024.09.13"]
[Round "3.220"]
[White "Pires, Luzia"]
[Black "Belgarde, Roudena"]
[Result "1-0"]
[ECO "D26"]
[WhiteElo "1877"]
[BlackElo "1540"]
[Annotator "NA RC"]
[PlyCount "61"]
[EventDate "2024.09.05"]
[EventType "team-tourn"]
[EventCountry "HUN"]
[SourceTitle "playchess.com"]
[Source "ChessBase"]
[SourceQuality "1"]
[WhiteTeam "Angola"]
[BlackTeam "Haiti"]
[WhiteTeamCountry "ANG"]
[BlackTeamCountry "HAI"]
[TimeControl "40/5400+30:1800+30"]

1. d4 d5 2. Nf3 Nc6 3. e3 Nf6 4. c4 dxc4 5. Bxc4 e6 6. O-O Be7 7. Nc3 O-O 8. a3 a6 9. b4 b5 10. Ba2 Bb7 11. Bb2 Bd6 12. Rc1 Ne7 13. Re1 Ned5 14. Bb1 Nxc3 15. Bxc3 Ng4 16. h3 Bxf3 17. Qxf3 Nh6 18. e4 f6 19. e5 fxe5 20. Qe4 g6 21. dxe5 Be7 22. Ba2 Bg5 23. Bxe6+ Nf7 24. f4 Bh6 25. Bd5 Bxf4 26. Rcd1 Qh4 27. Bxa8 Qg3 28. Bd5 Qxc3 29. Qxf4 c6 30. Bxf7+ Kg7 31. e6 1-0

[Event "45th FIDE Womens Olympiad 2024"]
[Site "Budapest"]
[Date "2024.09.13"]
[Round "3.221"]
[White "Cordero, Daniela"]
[Black "Beukes Jamie-Nicole"]
[Result "1-0"]
[ECO "E01"]
[WhiteElo "2017"]
[BlackElo "1735"]
[Annotator "NA RC"]
[PlyCount "67"]
[EventDate "2024.09.05"]
[EventType "team-tourn"]
[EventCountry "HUN"]
[SourceTitle "playchess.com"]
[Source "ChessBase"]
[SourceQuality "1"]
[WhiteTeam "Bolivia"]
[BlackTeam "Namibia"]
[WhiteTeamCountry "BOL"]
[BlackTeamCountry "NAM"]
[TimeControl "40/5400+30:1800+30"]

1. d4 d5 2. Nf3 Nf6 3. c4 e6 4. g3 dxc4 5. Qa4+ Bd7 6. Qxc4 c5 7. dxc5 Qc7 8. Be3 b5 9. Qc2 a5 10. Bg2 Na6 11. Nd4 Nb4 12. Qc1 Rc8 13. c6 Nxc6 14. Nxb5 Qe5 15. N1c3 Bb4 16. O-O O-O 17. a3 Be7 18. h3 Rfd8 19. Bf4 Qf5 20. e4 Qg6 21. Bc7 Rf8 22. Qe3 Ne8 23. Bb6 Ne5 24. b3 Bf6 25. Bc5 Bxb5 26. Nxb5 Nd7 27. Bd4 Rb8 28. a4 Rb7 29. e5 Bxe5 30. Bxb7 Bb8 31. Rac1 Nd6 32. Nxd6 Bxd6 33. Rfd1 Nf6 34. Bxf6 1-0

[Event "45th FIDE Womens Olympiad 2024"]
[Site "Budapest"]
[Date "2024.09.13"]
[Round "3.222"]
[White "Nepando, Jolly"]
[Black "Monroy G., Nataly A."]
[Result "0-1"]
[ECO "B23"]
[WhiteElo "1642"]
[BlackElo "1939"]
[Annotator "NA RC"]
[PlyCount "76"]
[EventDate "2024.09.05"]
[EventType "team-tourn"]
[EventCountry "HUN"]
[SourceTitle "playchess.com"]
[Source "ChessBase"]
[SourceQuality "1"]
[WhiteTeam "Namibia"]
[BlackTeam "Bolivia"]
[WhiteTeamCountry "NAM"]
[BlackTeamCountry "BOL"]
[TimeControl "40/5400+30:1800+30"]

1. e4 c5 2. Nc3 g6 3. f4 Bg7 4. Nf3 e6 5. Bb5 Ne7 6. d4 cxd4 7. Nxd4 O-O 8. Be3 a6 9. Ba4 b5 10. Bb3 Bb7 11. a3 d5 12. e5 Nd7 13. O-O Qc7 14. Qd2 Nc6 15. Nce2 Na5 16. c3 Nc4 17. Bxc4 dxc4 18. a4 bxa4 19. Rxa4 Nb6 20. Raa1 Rad8 21. Qc2 Nd5 22. Bf2 Bh6 23. Bh4 Ne3 24. Bxd8 Qxd8 25. Qc1 Nxf1 26. Qxf1 Qb6 27. Qb1 Qc5 28. Kf1 Qd5 29. Nf3 Rd8 30. Ned4 Bxf4 31. g3 Bxe5 32. Kf2 Bxd4+ 33. Nxd4 Qg2+ 34. Ke1 Qg1+ 35. Ke2 Qxh2+ 36. Ke3 Qxg3+ 37. Ke2 e5 38. Nf5 Qg4+ 0-1

[Event "45th FIDE Womens Olympiad 2024"]
[Site "Budapest"]
[Date "2024.09.13"]
[Round "3.223"]
[White "Yepez Montenegro, Gloria Luz"]
[Black "Van Wyk, Keisha C"]
[Result "1-0"]
[ECO "A45"]
[WhiteElo "1818"]
[BlackElo "1599"]
[Annotator "NA"]
[PlyCount "67"]
[EventDate "2024.09.05"]
[EventType "team-tourn"]
[EventCountry "HUN"]
[SourceTitle "playchess.com"]
[Source "ChessBase"]
[SourceQuality "1"]
[WhiteTeam "Bolivia"]
[BlackTeam "Namibia"]
[WhiteTeamCountry "BOL"]
[BlackTeamCountry "NAM"]
[TimeControl "40/5400+30:1800+30"]

1. d4 Nf6 2. Bf4 d6 3. Nc3 Bf5 4. f3 Nc6 5. e4 Bd7 6. Be3 a6 7. Qd2 e6 8. Be2 Be7 9. g4 Ng8 10. O-O-O b5 11. f4 b4 12. Nb1 d5 13. exd5 exd5 14. Bf3 Nf6 15. Qg2 Bc8 16. g5 Ne4 17. Bxe4 dxe4 18. Qxe4 Bb7 19. d5 Na5 20. Bc5 b3 21. axb3 O-O 22. Bxe7 Re8 23. Bxd8 Rxe4 24. Bxc7 Nxb3+ 25. cxb3 Rc8 26. d6 Re3 27. Nc3 Bxh1 28. d7 Rf8 29. d8=Q Ree8 30. Qd4 Rc8 31. Be5 Rc6 32. Bxg7 Rfc8 33. Bh6 Bd5 34. Qg7# 1-0

[Event "45th FIDE Womens Olympiad 2024"]
[Site "Budapest"]
[Date "2024.09.13"]
[Round "3.225"]
[White "Ortez, Andrea"]
[Black "Bouzana, Christina"]
[Result "1-0"]
[ECO "B22"]
[WhiteElo "1948"]
[BlackElo "1644"]
[Annotator "NA RC"]
[PlyCount "99"]
[EventDate "2024.09.05"]
[EventType "team-tourn"]
[EventCountry "HUN"]
[SourceTitle "playchess.com"]
[Source "ChessBase"]
[SourceQuality "1"]
[WhiteTeam "El Salvador"]
[BlackTeam "Cyprus"]
[WhiteTeamCountry "ESA"]
[BlackTeamCountry "CYP"]
[TimeControl "40/5400+30:1800+30"]

1. e4 c5 2. c3 Nf6 3. e5 Nd5 4. Nf3 Nc6 5. d4 cxd4 6. cxd4 d6 7. Bc4 e6 8. O-O Qc7 9. Qe2 Be7 10. Nc3 Nxc3 11. bxc3 dxe5 12. dxe5 O-O 13. Bd3 Rd8 14. Qe4 g6 15. Bh6 b6 16. Rad1 Bb7 17. Qf4 Bf8 18. Bg5 Be7 19. Bh6 Bf8 20. Rfe1 Bg7 21. h4 Ne7 22. Bxg7 Kxg7 23. h5 Nd5 24. h6+ Kg8 25. Qg5 Qe7 26. Qc1 Rac8 27. c4 b5 28. Be4 Rxc4 29. Qd2 Rdc8 30. Rc1 a6 31. Bd3 Rxc1 32. Rxc1 Rxc1+ 33. Qxc1 Qc7 34. Qg5 Qe7 35. Qd2 Nb6 36. Ng5 Nd7 37. Qe3 Nc5 38. Be2 Bd5 39. Bf3 Bxa2 40. Qa3 Bd5 41. Qe3 Nd7 42. Bxd5 exd5 43. Nf3 Qe6 44. Qc3 Nf8 45. Qc7 Qd7 46. Qb6 Qe6 47. Qc7 b4 48. Ng5 Qf5 49. e6 Nxe6 50. Nxe6 1-0